{"text_format":"2","workbook":"xlsx","n_sheets":2,"sheets":["Összesítő","Gépészet"],"not_rendered":{"charts":0,"images":0,"macros":0,"external_links":0,"defined_names":0,"comments":0,"pivot_tables":0},"unopened":[],"bounds":{"document_bytes":16777216,"sheet_cells":100000,"run_cost":"one","rows_first":2000,"rows_last":500,"rows_between":2000,"halvings":0,"cell_chars":16384,"cell_head_chars":4096},"cells_cut":0,"cells_raw":0,"read":"whole","date_system":"1900"}

{"sheet":"Összesítő","index":0,"n_rows":11,"n_cols":5,"rows_kept":11,"cut":false,"hidden":false,"merged":[]}
[]
[null,null,null,"ÖSSZESÍTŐ"]
[]
[null,null,"SZTE ÁOK Népegészségtan gépészet"]
[]
[]
[]
[null,null,"Anyag","Díj","Összesen"]
[]
[]
[null,"Gépészet nettó",null,null,{"$f":"SUM(C11:D11)","v":0}]

{"sheet":"Gépészet","index":1,"n_rows":52,"n_cols":8,"rows_kept":52,"cut":false,"hidden":false,"merged":[]}
[]
[null,null,null,"               KÖLTSÉGVETÉS"]
[]
[null,null,"SZTE ÁOK Népegészségtani Intézet gépészet"]
[]
[]
[]
[]
["S.sz","Megnevezés","Menny.","Me","Anyag","Díj","Anyag összes","Díj összes"]
[]
[]
[null,"78.sz. vizesblokk"]
[1,"falra szerelhető öblítőtartály cseréje Dömötör tipusra ",1,"db",0,0,{"$f":"(C13*E13)","v":0},{"$f":"(C13*F13)","v":0}]
[2,"WC csésze cseréje Alföldi mélyöblítésűre",1,"db",0,0,{"$f":"(C14*E14)","v":0},{"$f":"(C14*F14)","v":0}]
[3,"WC ülőke csere",1,"db",0,0,0,0]
[4,"Előtérben mosdókagyló és szifon cseréje Alföldi tipusra",1,"db",0,0,0,0]
[]
[null,"77.sz. Fürdő helység"]
[1,"meglévő tusoló fülke cseréje",1,"db",0,0,0,{"$f":"(C19*F19)","v":0}]
[2,"mosdókagylóban szifon rózsa csere",1,"db",0,0,0,0]
[]
[null,"75.sz. Labor helység"]
[1,"labor mosogató bontása és szennyvíz elvezető lezárása",1,"db",0,0,0,{"$f":"(C23*F23)","v":0}]
[2,"fali csaptelep bontása és a vízbekötések megszüntetése",1,"db",0,0,0,0]
[]
[null,"74.sz. Labor helység"]
[1,"labor mosogató és fali csaptelep bontása ",1,"db",0,0,0,{"$f":"(C27*F27)","v":0}]
[2,"mosdókagyló felszerelése szifonnal, cseppvíz elvezető bekötése",1,"db",0,0,0,0]
[3,"fali keverő csaptelep felszerelése",1,"db",0,0,0,0]
[4," split klíma beltéri cseppvíz elvezetésének burkolása kábelcsatornában",5,"m",0,0,0,0]
[]
[null,"68.sz. Folyosó"]
[]
[null,"69.sz. Folyosó"]
[1,"vegyifülke teljes bontása",1,"db",0,0,0,{"$f":"(C35*F35)","v":0}]
[2,"vészzuhany bontása, vízbekötésének megszüntetése",1,"db",0,0,0,0]
[3,"labor mosogató bontása és szennyvíz elvezető lezárása",1,"db",0,0,0,0]
[null,"fali csaptelep bontása és a vízbekötések megszüntetése",1,"db",0,0,0,0]
[]
[]
[null,"73.sz.Laboratórium"]
[1,"labor mosogató bontása és szennyvíz elvezető lezárása",1,"db",0,0,0,{"$f":"(C42*F42)","v":0}]
[2,"fali csaptelep bontása és a vízbekötések megszüntetése",1,"db",0,0,0,0]
[]
[null,"72.sz. Laboratórium"]
[]
[null,"71.sz.Laboratórium"]
[]
[null,"70.sz Dolgozó"]
[1,"labor mosogató és fali csaptelep bontása ",1,"db",0,0,0,{"$f":"(C50*F50)","v":0}]
[2,"mosdókagyló, szifon és keverő csaptelep felszerelése",1,"db",0,0,0,0]
[3,"általános falonkívüli csővezeték bontása és gerincvezeték lezárása",35,"m",0,0,0,0]